Cogmind - Beta 15 @@@ ROGUE MODE // 2025.08.03 @ 21:05:02 Player: FrigidRock Result: Destroyed by Y-54 Guardian with Gatling Laser Performance ------------- Evolutions (4) 2000 Regions Visited (11) 2200 Robots Destroyed (67) 335 Value Destroyed (2639) 2639 Prototype IDs (6) 120 Alien Tech Used (0) 0 Bonus (4236) 4236 TOTAL SCORE: 11530 Bonus ------- High Alert Combat Kills 1156 Follower Combat Kills 1896 Met Imprinter 300 Was Imprinted 300 Met Zhirov 300 Met R17 at Cetus 500 Read Decrypted Archives 300 Friendly Fire -516 Cogmind --------- Core Integrity 0/850 Matter 300/300 Energy 117/125 System Corruption 4% Temperature Cool (6) Movement Treading (160) Location -6/Hub_04(d) Parts ------- > --- POWER (2) -------- Light Ion Engine > --- PROPULSION (6) --- Centrium Heavy Treads > --- UTILITY (5) ------ Advanced Heat Sink Medium Storage Unit Hacking Suite System Shield > --- WEAPON (2) ------- Advanced Variable Charge Gun > --- INVENTORY (10) --- Advanced Signal Interpreter Improved Reaction Control System Improved Light Armor Plating Hacking Suite Gatling Laser CR-A16's Pointy Stick Peak State ------------ > --- POWER ------------ Light Angular Momentum Engine Fission Core > --- PROPULSION ------- Flexi-carbon Leg Armored Leg Armored Leg Armored Leg Myomer Leg Myomer Leg > --- UTILITY ---------- Medium Storage Unit Advanced Sensor Array Advanced Terrain Scanner Hacking Suite System Shield > --- WEAPON ----------- Gatling Laser Bore Cannon > --- INVENTORY -------- Neutrino Core Improved Carbon-fiber Leg Advanced Signal Interpreter Gatling Laser Gatling Laser Gatling Laser Phase Cannon Improved Proton Missile Launcher Heavy Missile Launcher CR-A16's Pointy Stick [Rating: 74] Favorites ----------- Power Fission Core Engine Light Angular Momentum Engine Power Core Fission Core Propulsion Armored Leg Treads Centrium Heavy Treads Leg Armored Leg Hover Unit Improved Gravmag System Flight Unit Flight Unit Utility System Shield Device Advanced Terrain Scanner Storage Medium Storage Unit Hackware System Shield Protection Improved Light Armor Plating Weapon Gatling Laser Energy Gun Gatling Laser Energy Cannon Ion Burst Cannon Ballistic Gun Assault Rifle Ballistic Cannon Bore Cannon Launcher Improved Proton Missile Launcher Build | -11 -10 -10 -9 -9 -7 -6 -6 -6 -6 -6 -6 ------- Run | Yrd Mat Min Mat Min Zio Pro Fac Ext Cet Arc Hub Slots Evolved 8 | . . . 2 . . . 6 . . . . Power 1 | . . . . . . . 1 . . . . Propulsion 4 | . . . 1 . . . 3 . . . . Utility 3 | . . . 1 . . . 2 . . . . Weapon . | . . . . . . . . . . . . Parts Attached 70 | 6 5 1 4 . 3 2 15 25 7 . 2 Power 8 | 1 1 . . . . . 2 2 1 . 1 Engine 5 | 1 1 . . . . . 1 1 . . 1 Core 3 | . . . . . . . 1 1 1 . . Reactor . | . . . . . . . . . . . . Propulsion 25 | 2 3 . 1 . . . 7 11 1 . . Treads 1 | . . . . . . . . . 1 . . Leg 17 | 2 1 . . . . . 3 11 . . . Wheel . | . . . . . . . . . . . . Hover 4 | . . . . . . . 4 . . . . Flight 3 | . 2 . 1 . . . . . . . . Utility 20 | 1 1 1 2 . 1 2 4 4 3 . 1 Device 10 | . 1 1 . . 1 . 3 2 1 . 1 Storage 3 | 1 . . 2 . . . . . . . . Processor . | . . . . . . . . . . . . Hackware 2 | . . . . . . 1 1 . . . . Protection 5 | . . . . . . 1 . 2 2 . . Artifact . | . . . . . . . . . . . . Weapon 17 | 2 . . 1 . 2 . 2 8 2 . . Energy Gun 5 | 1 . . . . . . 1 2 1 . . Energy Cannon 4 | . . . . . . . 1 2 1 . . Ballistic Gun 1 | 1 . . . . . . . . . . . Ballistic Cannon 2 | . . . . . . . . 2 . . . Launcher 5 | . . . 1 . 2 . . 2 . . . Special Weapon . | . . . . . . . . . . . . Impact Weapon . | . . . . . . . . . . . . Slashing Weapon . | . . . . . . . . . . . . Piercing Weapon . | . . . . . . . . . . . . Special Melee Weapon . | . . . . . . . . . . . . Unidentified Prototypes 6 | . . . . . 2 . . 1 3 . . Corrupted Parts 1 | . . . . . . . . . 1 . . System Corruption 2 | . . . . . . . . . 2 . . Parts Lost 30 | . . . . . . 6 . 9 13 . 2 Power 5 | . . . . . . 1 . 1 2 . 1 Propulsion 15 | . . . . . . 3 . 5 7 . . Utility 5 | . . . . . . 2 . 1 2 . . Weapon 5 | . . . . . . . . 2 2 . 1 Highest Loss Streak 6 | . . . . . . 3 . 2 6 . 1 To Critical Strikes 3 | . . . . . . . . . 3 . . Average Backups 7 | . 1 5 4 5 7 7 7 9 7 6 6 Power . | . 1 1 1 1 1 1 . 1 . . . Propulsion . | . . 2 1 1 . . . . . . . Utility 1 | . . . . 1 1 1 . 1 2 3 3 Weapon 4 | . . 2 2 2 4 4 5 5 4 3 2 Tool/Special . | . . . . . . . . . . . . Unused Backups 10 | . . 1 . . . 3 1 . . . 5 Power 2 | . . 1 . . . . 1 . . . . Propulsion . | . . . . . . . . . . . . Utility 3 | . . . . . . . . . . . 3 Weapon 5 | . . . . . . 3 . . . . 2 Tool/Special . | . . . . . . . . . . . . Average Slot Usage (%) 83 | . 89 69 79 88 88 56 69 97 71 57 52 Engine 5 | . 14 14 11 11 11 4 3 5 . . . Core 3 | . . . . . . . 2 6 9 6 1 Leg 20 | . 25 . . . . . 12 37 17 . . Hover 3 | . . . . . . . 17 1 . . . Flight 6 | . 2 28 33 33 33 23 . . . . . Device 10 | . 7 26 22 22 22 8 9 7 3 . 3 Storage 6 | . 12 . 5 11 11 9 5 6 6 6 6 Hackware 8 | . . . . . . 4 8 13 13 13 13 Protection 2 | . . . . . . . . 3 7 13 7 Energy Gun 3 | . 12 . . . . . 2 5 1 6 6 Energy Cannon 2 | . . . . . . . 4 1 5 4 4 Launcher 3 | . . . 8 11 11 4 . 4 2 . . Peak Build Rating 74 | 6 9 7 11 12 25 13 61 74 70 65 65 Average Rating 47 | 4 7 6 10 11 12 9 46 68 55 64 54 On Entrance 26 | . 6 6 7 11 12 13 4 60 70 60 65 Naked Turns . | . . . . . . . . . . . . Heaviest Build 55 | 12 13 5 11 11 11 11 36 55 52 51 51 Greatest Support 118 | 20 20 8 12 12 12 12 49 118 113 80 80 Greatest Overweight (x) 10 | . 1 . . . . . 1 1 10 . . Average Overweight (x) . | . . . . . . . . . . . . Largest Inventory Capacity 10 | 8 8 5 10 8 8 8 10 10 10 10 10 Average Capacity 9 | 6 7 5 6 8 8 7 9 10 10 10 10 Most Carried 10 | 1 5 5 5 6 8 8 10 10 10 7 7 Average Carried 7 | . 1 5 4 5 7 7 7 9 7 6 6 Final Capacity 10 | 8 5 5 8 8 8 5 10 10 10 10 10 Final Carried 10 | 1 5 5 5 6 8 5 9 10 7 6 6 Class Distribution -------------------- 39% | Mutant 30% | Commander-Mutant 29% | Hacker-Mutant Dominant Class ---------------- Mutant | -10/Materials Mutant | -10/Mines Mutant | -9/Materials Mutant | -9/Mines Mutant | -7/Zion Mutant | -6/Proximity Caves Mutant | -6/Factory Commander-Mutant | -6/Extension Hacker-Mutant | -6/Cetus Hacker-Mutant | -6/Archives Hacker-Mutant | -6/Hub_04(d) Resources | -11 -10 -10 -9 -9 -7 -6 -6 -6 -6 -6 -6 ----------- Run | Yrd Mat Min Mat Min Zio Pro Fac Ext Cet Arc Hub Matter Collected 1868 | 194 138 55 . . 60 30 81 1014 257 . 39 Remotely . | . . . . . . . . . . . . Salvage Created 2250 | . 208 . . . . . 167 1429 383 . 63 Parts 104 | . 11 . . . . . 10 71 9 . 3 Haulers Intercepted . | . . . . . . . . . . . . Recyclers Shooed 7 | . 1 . . . . . 1 4 . . 1 Parts Field Recycled . | . . . . . . . . . . . . Retrieved Matter . | . . . . . . . . . . . . Parts Self-Destructed . | . . . . . . . . . . . . Prevented . | . . . . . . . . . . . . Kills | -11 -10 -10 -9 -9 -7 -6 -6 -6 -6 -6 -6 ------- Run | Yrd Mat Min Mat Min Zio Pro Fac Ext Cet Arc Hub Combat Hostiles Destroyed 39 | . 4 . . . . . 2 25 7 . 1 Guns 12 | . 4 . . . . . . 7 . . 1 Cannons 7 | . . . . . . . . 3 4 . . AOE 17 | . . . . . . . 2 14 1 . . Classes Destroyed 16 | . 3 . . . . . 4 8 1 . . Worker 10 | . . . . . . . 1 8 . . 1 Builder 6 | . . . . . . . 1 5 . . . Tunneler 1 | . . . . . . . . 1 . . . Recycler 3 | . 1 . . . . . . 2 . . . Watcher 5 | . . . . . . . 2 1 2 . . Swarmer 5 | . 2 . . . . . . 3 . . . Grunt 14 | . 2 . . . . . . 11 . . 1 Brawler 1 | . . . . . . . . 1 . . . Duelist 1 | . . . . . . . . 1 . . . Protector 1 | . . . . . . . . 1 . . . Sentry 6 | . . . . . . . . 6 . . . Specialist 2 | . . . . . . . 2 . . . . Programmer 1 | . . . . . . . . 1 . . . Behemoth 1 | . . . . . . . . 1 . . . Cetus Guard 7 | . . . . . . . . . 7 . . Thug 1 | . . . . . . . . 1 . . . Guerrilla 1 | . . . . . . . . . 1 . . Fireman 1 | . . . . . . . . 1 . . . Best Kill Streak 11 | . 4 . . . . . 4 11 4 . 1 Combat Bots Only 4 | . 2 . . . . . 2 4 3 . 1 Max Kills in Single Turn 3 | . 1 . . . . . 1 3 1 . 1 Gunslinging 1 | . . . . . . . . 1 . . . Exploded 2 | . . . . . . . 1 2 1 . . Melee . | . . . . . . . . . . . . Uniques/NPCs Destroyed . | . . . . . . . . . . . . Combat | -11 -10 -10 -9 -9 -7 -6 -6 -6 -6 -6 -6 -------- Run | Yrd Mat Min Mat Min Zio Pro Fac Ext Cet Arc Hub Hostile Shots Fired 571 | . 41 1 . 1 . 35 9 308 100 . 76 Missed 205 | . 13 1 . 1 . 17 3 113 32 . 25 Hits 366 | . 28 . . . . 18 6 195 68 . 51 Melee 5 | . . . . . . . . . . . 5 Projectile 361 | . 28 . . . . 18 6 195 68 . 46 AOE 4 | . . . . . . . . 1 . . 3 Critical Strikes 18 | . . . . . . . . 3 11 . 4 Damage Taken 6115 | . 307 . . . . 369 106 2404 2009 . 920 Core 1130 | . 89 . . . . 181 11 269 401 . 179 Absorbed by Shields . | . . . . . . . . . . . . Regen/Repaired (Parts) 2 | . . . . . 2 . . . . . . Core Remaining (%) 72 | 100 . 64 . . . 54 . . . . . Volleys Fired 157 | . 19 . . . . . 32 70 24 . 12 Largest 2 | . 2 . . . . . 2 2 2 . 2 Hottest 200 | . 70 . . . . . 165 200 200 . 180 Shots Fired 261 | . 38 . . . . . 40 120 44 . 19 Gun 121 | . 38 . . . . . 7 64 . . 12 Cannon 75 | . . . . . . . 28 9 31 . 7 Launcher 65 | . . . . . . . 5 47 13 . . Special . | . . . . . . . . . . . . Kinetic 24 | . 19 . . . . . . 5 . . . Thermal 172 | . 19 . . . . . 35 68 31 . 19 Explosive 38 | . . . . . . . 5 29 4 . . Electromagnetic 27 | . . . . . . . . 18 9 . . Robot Hit Streak 10 | . 5 . . . . . 7 10 6 . 4 Robot Miss Streak 5 | . 2 . . . . . 2 5 4 . 5 Penetration Max . | . . . . . . . . . . . . Secondary Targets 3 | . 1 . . . . . . 2 . . . Max Gunslinging Chain 1 | . 1 . . . . . . 1 . . . Shots Hit Robots 171 | . 23 . . . . . 9 94 33 . 12 Core Hits 204 | . 8 . . . . . 8 144 38 . 6 Critical Kills . | . . . . . . . . . . . . Critical Parts Destroyed 1 | . . . . . . . . 1 . . . Critical Strikes 2 | . 1 . . . . . . 1 . . . Burn 1 | . 1 . . . . . . . . . . Destroy 1 | . . . . . . . . 1 . . . Melee Attacks . | . . . . . . . . . . . . Impact . | . . . . . . . . . . . . Slashing . | . . . . . . . . . . . . Piercing . | . . . . . . . . . . . . Sneak Attacks . | . . . . . . . . . . . . Combat Hostiles . | . . . . . . . . . . . . Follow-up Attacks . | . . . . . . . . . . . . Damage Inflicted 10075 | . 297 . . . . . 615 6596 2045 . 522 Guns 2104 | . 297 . . . . . 32 1473 . . 302 Cannons 1446 | . . . . . . . 91 219 947 . 189 Explosions 6461 | . . . . . . . 487 4876 1098 . . Melee . | . . . . . . . . . . . . Ramming 64 | . . . . . . . 5 28 . . 31 Kinetic 232 | . 149 . . . . . . 83 . . . Thermal 3415 | . 148 . . . . . 123 1706 947 . 491 Explosive 4283 | . . . . . . . 487 3391 405 . . Electromagnetic 2081 | . . . . . . . . 1388 693 . . Impact . | . . . . . . . . . . . . Slashing . | . . . . . . . . . . . . Piercing . | . . . . . . . . . . . . Highest Corruption 4 | . . . . . . . 1 1 4 4 4 Average Corruption 1 | . . . . . . . 1 1 2 4 4 Corruption Purged . | . . . . . . . . . . . . Corruption Blocked . | . . . . . . . . . . . . Effects 33 | . . . . . . . 3 19 7 1 3 Message Errors 9 | . . . . . . . 1 5 2 . 1 Matter Fused 6 | . . . . . . . . 2 2 1 1 Heat Flow Errors 5 | . . . . . . . 1 4 . . . Energy Discharges 3 | . . . . . . . . 3 . . . Parts Fused 1 | . . . . . . . . . . . 1 Data Loss (minor) 5 | . . . . . . . . 3 2 . . Data Loss (major) 1 | . . . . . . . . 1 . . . Misfires 1 | . . . . . . . 1 . . . . Alerts 1 | . . . . . . . . 1 . . . Weapon Failures 1 | . . . . . . . . . 1 . . Overload Shots . | . . . . . . . . . . . . Overflow Damage 91 | . . . . . . . . 73 18 . . Projectiles 25 | . . . . . . . . 17 8 . . Explosions 66 | . . . . . . . . 56 10 . . Melee . | . . . . . . . . . . . . Knockbacks 1 | . . . . . . . . 1 . . . Impact . | . . . . . . . . . . . . Kinetic 1 | . . . . . . . . 1 . . . Secondary . | . . . . . . . . . . . . Self-Inflicted Damage 188 | . . . . . . . 40 132 16 . . Shots 7 | . . . . . . . 1 5 1 . . Rammed 11 | . . . . . . . 2 . . . 9 Targets Rammed 14 | . . . . . . . 2 3 . . 9 Kicked 3 | . . . . . . . . 3 . . . Crushed . | . . . . . . . . . . . . Highest Temperature 628 | . 108 . . . . . 406 443 628 . 213 Average Temperature 137 | . 58 . . . . . 125 132 193 . 76 Received Heat Transfer 1246 | . 132 . . . . 33 . 676 180 . 225 Effects 22 | . . . . . . . 1 11 10 . . Shutdowns 7 | . . . . . . . . 4 3 . . Energy Bleed 3 | . . . . . . . . 2 1 . . Interference 5 | . . . . . . . . 5 . . . Matter Decay 1 | . . . . . . . . . 1 . . Short Circuit 3 | . . . . . . . 1 . 2 . . Damage (minor) 1 | . . . . . . . . . 1 . . Damage (major) 1 | . . . . . . . . . 1 . . Damage (core) 1 | . . . . . . . . . 1 . . Siege Activations 1 | . . . . . . . . . . . 1 Total Turns 2 | . . . . . . . . . . . 2 Longest Duration 2 | . . . . . . . . . . . 2 Martial Activations . | . . . . . . . . . . . . Shielding Activations . | . . . . . . . . . . . . Robots Disrupted . | . . . . . . . . . . . . Combat Hostiles . | . . . . . . . . . . . . Robots Corrupted 2 | . . . . . . . . . 2 . . Combat Hostiles 2 | . . . . . . . . . 2 . . Parts Fried 2 | . . . . . . . . 2 . . . Impact Corruptions . | . . . . . . . . . . . . Robots Melted 1 | . . . . . . . . 1 . . . Combat Hostiles 1 | . . . . . . . . 1 . . . Parts Melted 5 | . 1 . . . . . 1 3 . . . Heat Transferred 6049 | . 518 . . . . . 186 3662 1125 . 558 Parts Sabotaged . | . . . . . . . . . . . . Parts Stolen . | . . . . . . . . . . . . Parts Stripped . | . . . . . . . . . . . . Power Chain Reactions 2 | . . . . . . . . 2 . . . Alert | -11 -10 -10 -9 -9 -7 -6 -6 -6 -6 -6 -6 ------- Run | Yrd Mat Min Mat Min Zio Pro Fac Ext Cet Arc Hub Maximum Alert Level 5 | . . . . . . . . 5 4 2 1 Low Security (%) 52 | 100 100 100 100 100 . . 100 31 . . 73 Level 1 10 | . . . . . . . . 15 . 73 26 Level 2 6 | . . . . . . . . 12 . 26 . Level 3 16 | . . . . . . . . 14 84 . . Level 4 7 | . . . . . . . . 11 15 . . Level 5 7 | . . . . . . . . 15 . . . High Security . | . . . . . . . . . . . . Max Security . | . . . . . . . . . . . . Peak Influence 1953 | . 90 54 6 30 . . 115 1953 1125 407 253 Initial 1072 | . . 19 . 1 . . 2 . 1072 407 142 Average 485 | . 35 16 . 10 . . 20 708 1070 393 174 Influence Increases 4155 | . 128 75 6 30 . 30 140 3182 303 30 231 Destroy 0b10 Robot/C 1800 | . 80 . . . . . 40 1400 140 . 140 Destroy 0b10 Robot/NC 165 | . 5 . . . . . 20 125 10 . 5 Destroy Leader 220 | . 20 . . . . . 14 156 . . 30 Allied During Kill 1295 | . . . . . . . 3 1244 3 . 45 Successful Hack 32 | . 8 . 6 . . . . 18 . . . Disable Machine 45 | . . . . . . . 15 30 . . . Destroy Structure 268 | . . . . . . . 48 179 30 . 11 Lose Combat Pursuer 330 | . 15 75 . 30 . 30 . 30 120 30 . Influence Decreases 3922 | . 78 125 . 16 20 25 145 1265 1201 642 405 Entered New Map 1781 | . . 31 . 5 20 . 3 . 845 612 265 Time Decay 1258 | . 78 74 . 11 . 25 142 592 206 30 100 Lost Part 240 | . . . . . . . . 90 130 . 20 Lost Ally 643 | . . 20 . . . . . 583 20 . 20 Squads Dispatched 13 | . . . . . . . 4 7 . . 2 Investigation 2 | . . . . . . . . 2 . . . Extermination 2 | . . . . . . . 2 . . . . Reinforcement 6 | . . . . . . . 2 2 . . 2 Assault 3 | . . . . . . . . 3 . . . Garrison . | . . . . . . . . . . . . Intercept . | . . . . . . . . . . . . Searches Triggered . | . . . . . . . . . . . . Construction Impeded 1 | . . . . . . . . 1 . . . Haulers Reinforced . | . . . . . . . . . . . . Active Scanning Responses . | . . . . . . . . . . . . Cargo Convoy Interrupts . | . . . . . . . . . . . . Stealth | -11 -10 -10 -9 -9 -7 -6 -6 -6 -6 -6 -6 --------- Run | Yrd Mat Min Mat Min Zio Pro Fac Ext Cet Arc Hub Distress Signals 8 | . . 1 . . . . . 3 2 . 2 Communications Jammed . | . . . . . . . . . . . . Distress Signals . | . . . . . . . . . . . . Times Spotted 129 | . 8 8 . 2 . 3 8 72 14 2 12 Peak Tracking Total 9 | . 4 3 . 2 . 2 2 9 5 6 5 Tactical Retreats 14 | . 1 3 . 1 . 2 . 2 4 1 . Traps | -11 -10 -10 -9 -9 -7 -6 -6 -6 -6 -6 -6 ------- Run | Yrd Mat Min Mat Min Zio Pro Fac Ext Cet Arc Hub Traps Triggered 2 | . . . . . . . . 2 . . . Indirectly . | . . . . . . . . . . . . Trap Hack Attempts . | . . . . . . . . . . . . Triggered . | . . . . . . . . . . . . Disarmed . | . . . . . . . . . . . . Reprogrammed . | . . . . . . . . . . . . Reused . | . . . . . . . . . . . . Traps Extracted . | . . . . . . . . . . . . Installed . | . . . . . . . . . . . . Triggered . | . . . . . . . . . . . . Machines | -11 -10 -10 -9 -9 -7 -6 -6 -6 -6 -6 -6 ---------- Run | Yrd Mat Min Mat Min Zio Pro Fac Ext Cet Arc Hub Machines Disabled 4 | . . . . . . . 1 3 . . . Max in Single Turn 1 | . . . . . . . 1 1 . . . Energy Cycler 1 | . . . . . . . . 1 . . . Machines Repaired . | . . . . . . . . . . . . Machines Dismantled . | . . . . . . . . . . . . Machines Sabotaged . | . . . . . . . . . . . . Overloaded Fab Kills . | . . . . . . . . . . . . Hacking | -11 -10 -10 -9 -9 -7 -6 -6 -6 -6 -6 -6 --------- Run | Yrd Mat Min Mat Min Zio Pro Fac Ext Cet Arc Hub Machines Accessed 12 | . 2 . 1 . . . 1 6 1 1 . Terminals 10 | . 2 . 1 . . . . 6 1 . . Fabricators . | . . . . . . . . . . . . Repair Stations . | . . . . . . . . . . . . Recycling Units . | . . . . . . . . . . . . Scanalyzers . | . . . . . . . . . . . . Garrison Access 1 | . . . . . . . 1 . . . . Total Hacks 54 | . 2 . 1 . . . 2 21 3 25 . Successful 34 | . 2 . 1 . . . . 6 . 25 . Failed 20 | . . . . . . . 2 15 3 . . Catastrophic 3 | . . . . . . . . 2 1 . . Database Lockouts . | . . . . . . . . . . . . Manual 22 | . 2 . 3 . . . 11 4 . . 2 Terminals 27 | . 2 . 1 . . . . 21 3 . . Fabricators . | . . . . . . . . . . . . Repair Stations . | . . . . . . . . . . . . Recycling Units . | . . . . . . . . . . . . Scanalyzers . | . . . . . . . . . . . . Garrison Access 2 | . . . . . . . 2 . . . . Terminal Hacks 34 | . 2 . 1 . . . . 6 . 25 . Record 25 | . . . . . . . . . . 25 . Robot Analysis 2 | . 1 . 1 . . . . . . . . Open Door 6 | . . . . . . . . 6 . . . Branch Access Points 1 | . 1 . . . . . . . . . . Fabricator Hacks . | . . . . . . . . . . . . Repair Station Hacks . | . . . . . . . . . . . . Recycling Unit Hacks . | . . . . . . . . . . . . Scanalyzer . | . . . . . . . . . . . . Garrison Access Hacks . | . . . . . . . . . . . . Unauthorized Hacks . | . . . . . . . . . . . . Terminals . | . . . . . . . . . . . . Fabricators . | . . . . . . . . . . . . Repair Stations . | . . . . . . . . . . . . Recycling Units . | . . . . . . . . . . . . Scanalyzers . | . . . . . . . . . . . . Garrison Access . | . . . . . . . . . . . . Data Cores Recovered . | . . . . . . . . . . . . Used . | . . . . . . . . . . . . Hacking Detections 7 | . . . 1 . . . 1 4 1 . . Full Trace Events 1 | . . . . . . . . 1 . . . Feedback Events . | . . . . . . . . . . . . Feedback Blocked . | . . . . . . . . . . . . Robot Schematics Acquired 3 | . . . . . 3 . . . . . . Robots Built . | . . . . . . . . . . . . Authchips . | . . . . . . . . . . . . Time . | . . . . . . . . . . . . Total Robot Build Rating . | . . . . . . . . . . . . Part Schematics Acquired 15 | . . . . . 15 . . . . . . Parts Built . | . . . . . . . . . . . . Authchips . | . . . . . . . . . . . . Time . | . . . . . . . . . . . . Total Part Build Rating . | . . . . . . . . . . . . Parts Repaired . | . . . . . . . . . . . . Time . | . . . . . . . . . . . . Parts Recycled . | . . . . . . . . . . . . Recycled Matter . | . . . . . . . . . . . . Retrieved Matter . | . . . . . . . . . . . . Retrieved Components . | . . . . . . . . . . . . Parts Scanalyzed . | . . . . . . . . . . . . Part Schematics Acquired . | . . . . . . . . . . . . Parts Damaged . | . . . . . . . . . . . . Bothacking | -11 -10 -10 -9 -9 -7 -6 -6 -6 -6 -6 -6 ------------ Run | Yrd Mat Min Mat Min Zio Pro Fac Ext Cet Arc Hub Used RIF Installer . | . . . . . . . . . . . . Robots Hacked . | . . . . . . . . . . . . Non-combat . | . . . . . . . . . . . . Combat . | . . . . . . . . . . . . Robot Hacks Applied . | . . . . . . . . . . . . Relay Couplers Released . | . . . . . . . . . . . . Fabnet Peak Effective % . | . . . . . . . . . . . . Robots Rewired 28 | . . . . . . . 1 27 . . . Allies Hacked 3 | . . . . . . . 1 2 . . . Hacks Repelled . | . . . . . . . . . . . . Allies | -11 -10 -10 -9 -9 -7 -6 -6 -6 -6 -6 -6 -------- Run | Yrd Mat Min Mat Min Zio Pro Fac Ext Cet Arc Hub Total Allies 53 | . . 3 . . 4 . 2 41 . . 3 Largest Group 19 | . . 3 . . 4 4 2 19 2 . 3 Highest-Rated Group 637 | . . 40 . . 158 158 57 637 124 . 210 Highest-Rated Ally 85 | . . 16 . . 41 41 29 85 85 . 70 Zionite Dispatches 5 | . . . . . . . 2 2 . . 1 Heavy 1 | . . . . . . . . 1 . . . Light 1 | . . . . . . . . . . . 1 Recon 1 | . . . . . . . 1 . . . . Fire 1 | . . . . . . . . 1 . . . Heavy Resupply 1 | . . . . . . . 1 . . . . Total Orders 1 | . . . . . . . 1 . . . . DROP 1 | . . . . . . . 1 . . . . Ally Attacks 402 | . . 17 . . . . 9 312 12 . 52 Total Damage 8125 | . . 152 . . . . 117 6605 236 . 1015 Kills 68 | . . 1 . . . . . 61 . . 6 Allies Corrupted . | . . . . . . . . . . . . Allies Melted . | . . . . . . . . . . . . Intel | -11 -10 -10 -9 -9 -7 -6 -6 -6 -6 -6 -6 ------- Run | Yrd Mat Min Mat Min Zio Pro Fac Ext Cet Arc Hub Active Infowar (turns) 2700 | . . 173 38 55 601 71 744 1018 . . . Sensors 2321 | . . 173 38 55 601 71 376 1007 . . . Terrain 1206 | . . . . . . . 690 516 . . . Robot Analysis Total 2 | . 1 . 1 . . . . . . . . Derelict Logs Recovered 5 | . . 3 . . 1 1 . . . . . Drone Launches . | . . . . . . . . . . . . Drone Recoveries . | . . . . . . . . . . . . Zionite Intel Received 1 | . . . . . . . 1 . . . . Unaware Analyses 1 | . . . . . . . 1 . . . . Exploration | -11 -10 -10 -9 -9 -7 -6 -6 -6 -6 -6 -6 ------------- Run | Yrd Mat Min Mat Min Zio Pro Fac Ext Cet Arc Hub Turns Passed 5003 | 61 224 184 38 55 604 191 832 2100 428 75 211 Spaces Moved 4498 | 48 149 426 94 158 1019 488 751 1038 194 47 86 Core 191 | 8 . . . . . 62 109 . 12 . . Treads 185 | . . . . . . . . . 52 47 86 Legs 1299 | 40 108 . . . . . 52 969 130 . . Wheels . | . . . . . . . . . . . . Hover 659 | . . . . . . . 590 69 . . . Flight 2164 | . 41 426 94 158 1019 426 . . . . . Fastest Speed 34 | 50 37 37 34 34 34 34 50 68 120 160 160 Average Speed 73 | 108 97 37 34 34 34 37 81 116 157 160 160 Slowest Speed 550 | 120 190 37 34 34 34 50 136 125 550 160 160 Overloaded Moves . | . . . . . . . . . . . . Propulsion Burnouts . | . . . . . . . . . . . . Robots Hopped 3 | . . 3 . . . . . . . . . Potential Cave-ins 5 | . . . . . . . 5 . . . . Cave-ins Triggered . | . . . . . . . . . . . . Exploration Rate (%) 47 | 4 32 64 17 51 89 64 19 94 56 65 10 Regions Visited 11 Branch Regions 8 Pre-discovered Areas 3 | . . . . . 3 . . . . . . Known Exits Taken 2 | . 1 . 1 . . . . . . . . Unknown Exits Taken 9 | 1 . 1 . 1 1 1 1 1 1 1 . Scrap Searched 8 | . . 2 . . 2 4 . . . . . Spaces Dug 19 | . . . . . . . 19 . . . . Terrain Destroyed 448 | . . . . . . . 59 333 54 . 2 Melee . | . . . . . . . . . . . . Projectile 24 | . . . . . . . 20 2 . . 2 AOE 424 | . . . . . . . 39 331 54 . . Terrain Rammed . | . . . . . . . . . . . . Walls Destroyed . | . . . . . . . . . . . . Machines Disabled . | . . . . . . . . . . . . Actions | -11 -10 -10 -9 -9 -7 -6 -6 -6 -6 -6 -6 --------- Run | Yrd Mat Min Mat Min Zio Pro Fac Ext Cet Arc Hub Total 5860 | 54 189 449 98 158 1277 498 929 1777 252 47 132 Wait 864 | . 8 24 . . 242 1 108 441 20 . 20 Move 4481 | 47 148 419 93 157 1018 487 750 1037 193 46 86 Hop 3 | . . 3 . . . . . . . . . Pick Up 27 | 1 1 1 . 1 5 1 8 7 1 . 1 Fast Attach 52 | 6 4 1 3 . 4 2 12 13 5 . 2 Attach 22 | . . . 1 . . . 7 7 5 1 1 Detach 10 | . 2 . 1 . 1 . 5 . 1 . . Swap 16 | . 2 . . . . . . 14 . . . Drop 40 | . 5 1 . . 7 7 3 13 3 . 1 Fire 157 | . 19 . . . . . 32 70 24 . 12 Melee . | . . . . . . . . . . . . Ram 2 | . . . . . . . 2 . . . . Kick 3 | . . . . . . . . 3 . . . Crush 9 | . . . . . . . . . . . 9 Escape Stasis . | . . . . . . . . . . . . Rewire 174 | . . . . . . . 2 172 . . . Trap . | . . . . . . . . . . . . Miscellaneous . | . . . . . . . . . . . . Route ------- -11/Scrapyard -10/Materials -10/Mines -9/Materials (discovered 2 exits: Mat / *Min) -9/Mines -7/Zion -6/Proximity Caves -6/Factory (discovered 2 exits: [*Fac] / *Ext) -6/Extension (discovered 3 exits: [*Fac x2] / *Cet) -6/Cetus (discovered 2 exits: [*Fac] / *Arc) -6/Archives -6/Hub_04(d) (discovered 1 exit: [*Fac]) History --------- Turn | Location | Event 5 | -11/Scrapyard | Discovered new exit (range 16) 62 | -11/Scrapyard | Entered Materials 89 | -10/Materials | Identified exit to Mines 286 | -10/Materials | Entered Mines 314 | -10/Mines | Met a Derelict bent on vengeance 318 | -10/Mines | Build established: Mutant 320 | -10/Mines | Assembled infested the area 321 | -10/Mines | Assisted by bots powering up and referring to "LRC-V3" 325 | -10/Mines | Assisted by a Guerilla fighting off Assembled 343 | -10/Mines | Learned 4 Materials zone layouts 364 | -10/Mines | Received a Mining Laser from a helpful Derelict 384 | -10/Mines | Learned Materials emergency access door positions 452 | -10/Mines | Discovered new exit (range 9) 470 | -10/Mines | Entered Materials 470 | -9/Materials | Evolved 2 slots: Propulsion x1, Utility x1 471 | -9/Materials | Identified exit to Mines 471 | -9/Materials | Identified exit to Materials 508 | -9/Materials | Entered Mines 547 | -9/Mines | A weapon hastily lodged in a ceiling crevice suddenly fell to the ground 560 | -9/Mines | A Derelict revealed a hidden shortcut to a safe place 563 | -9/Mines | Entered Zion 642 | -7/Zion | Discovered new exit (range 10) 653 | -7/Zion | Learned location of Warlord (-4) 756 | -7/Zion | Learned location of Quarantine (-3) 759 | -7/Zion | Learned location of Armory (-4) 764 | -7/Zion | Learned Factory non-interactive machine intel 771 | -7/Zion | Learned Factory scanalyzer intel 775 | -7/Zion | Found Prototype Device 775 | -7/Zion | Identified Phasing AFG 844 | -7/Zion | Learned Factory terminal intel 866 | -7/Zion | Found CR-A16's Pointy Stick 885 | -7/Zion | Met Imprinter 892 | -7/Zion | Imprinted 894 | -7/Zion | Declared Zion's savior 1167 | -7/Zion | Entered Proximity Caves 1167 | -6/Proximity Caves | Accompanied by 4 allies 1169 | -6/Proximity Caves | Learned Factory security intel 1237 | -6/Proximity Caves | Spotted B-75 Beast 1272 | -6/Proximity Caves | Lost 3 parts (1p1n1u) 1354 | -6/Proximity Caves | Discovered new exit (range 7) 1358 | -6/Proximity Caves | Entered Factory 1358 | -6/Factory | Evolved 6 slots: Power x1, Propulsion x3, Utility x2 1360 | -6/Factory | Loaded intel: 187 non-interactive machine locations 1361 | -6/Factory | Loaded intel: 28 terminal locations 1361 | -6/Factory | Lost 3 parts (2n1u) 1362 | -6/Factory | Loaded intel: 4 scanalyzer locations 1807 | -6/Factory | Discovered new exit (range 13) 1912 | -6/Factory | Discovered new exit (range 14) 1942 | -6/Factory | Retrieved Zion intel report: Unaware Analyses 1943 | -6/Factory | Zion Heavy Resupply teleported in 1947 | -6/Factory | Zion Recon squad teleported in 2190 | -6/Factory | Entered Extension 2190 | -6/Extension | Accompanied by 1 ally 2217 | -6/Extension | Rescued a captive Derelict 2256 | -6/Extension | Build established: Hacker-Mutant 2405 | -6/Extension | Rescued a captive Derelict 2594 | -6/Extension | Rescued a captive Derelict 2667 | -6/Extension | Rescued a captive Derelict 2667 | -6/Extension | Rescued a captive Derelict 2732 | -6/Extension | Build established: Commander-Mutant 3061 | -6/Extension | Spotted B-75 Beast 3073 | -6/Extension | Spotted B-75 Beast 3078 | -6/Extension | Destroyed B-75 Beast 3089 | -6/Extension | Allies destroyed B-75 Beast 3090 | -6/Extension | Disrupted transfer network 3092 | -6/Extension | Discovered new exit (range 15) 3139 | -6/Extension | Lost 6 allies 3274 | -6/Extension | Lost 3 allies 3368 | -6/Extension | Rescued a captive Derelict 3370 | -6/Extension | Rescued a captive Derelict 3451 | -6/Extension | Lost 6 allies 3502 | -6/Extension | Zion Heavy squad teleported in 3514 | -6/Extension | Rescued a captive Derelict 3532 | -6/Extension | Zion Fire squad teleported in 3609 | -6/Extension | Lost 8 allies 3705 | -6/Extension | Energy Cycler disabled 3715 | -6/Extension | Terminal network hard line cut 3778 | -6/Extension | Discovered new exit (range 10) 3779 | -6/Extension | Discovered new exit (range 6) 3940 | -6/Extension | First assault squad dispatched 4042 | -6/Extension | Lost 8 allies 4260 | -6/Extension | Build established: Hacker-Mutant 4290 | -6/Extension | Entered Cetus 4290 | -6/Cetus | Accompanied by 2 allies 4307 | -6/Cetus | Spotted Cetus Guard 4307 | -6/Cetus | Spotted Cetus Guard 4310 | -6/Cetus | Spotted Cetus Guard 4316 | -6/Cetus | Spotted Cetus Guard 4324 | -6/Cetus | Destroyed Cetus Guard 4326 | -6/Cetus | Destroyed Cetus Guard 4329 | -6/Cetus | Destroyed Cetus Guard 4358 | -6/Cetus | Lost 3 parts (1p1n1w) 4407 | -6/Cetus | Discovered new exit (range 16) 4428 | -6/Cetus | Spotted Cetus Guard 4428 | -6/Cetus | Spotted Cetus Guard 4431 | -6/Cetus | Spotted Cetus Guard 4431 | -6/Cetus | Spotted Cetus Guard 4447 | -6/Cetus | Core integrity fell below 50% 4481 | -6/Cetus | Lost 4 parts (3n1w) 4492 | -6/Cetus | Destroyed Cetus Guard 4529 | -6/Cetus | Destroyed Cetus Guard 4547 | -6/Cetus | Destroyed Cetus Guard 4559 | -6/Cetus | Destroyed Cetus Guard 4566 | -6/Cetus | Core integrity fell below 20% 4575 | -6/Cetus | Discovered new exit (range 15) 4581 | -6/Cetus | Lost 6 parts (1p3n2u) 4602 | -6/Cetus | Scared off Revision 17 4718 | -6/Cetus | Entered Archives 4743 | -6/Archives | Met Zhirov 4749 | -6/Archives | Reinforcements dispatched to Archives 4763 | -6/Archives | Read partially decrypted archive contents 4766 | -6/Archives | Discovered new exit (range 16) 4793 | -6/Archives | Entered Hub_04(d) 4852 | -6/Hub_04(d) | Zion Light squad teleported in 4985 | -6/Hub_04(d) | Discovered new exit (range 16) 5004 | -6/Hub_04(d) | Destroyed by Y-54 Guardian with Gatling Laser Last Messages --------------- 04985_ EXIT=FOUND 04985_ R-10 Processor collects Reaction Control System. 04986_ W-25 Informer sends out distress signal. 04986_ U-05 Engineer builds a Wall. 04987_ R-10 Processor collects Surge Thruster. 04988_ U-05 Engineer lays Concrete. 04989_ U-05 Engineer builds a Wall. 04990_ R-10 Processor collects Blade Saw. 04991_ R-10 Processor collects Surge Thruster. 04991_ Phase Cannon destroyed. 04992_ X-67 Chaingunner destroyed. 04993_ U-05 Engineer builds a Wall. 04993_ U-05 Engineer lays Concrete. 04994_ R-10 Processor collects Reaction Control System. 04997_ ALERT: Security rotation in progress. 04998_ U-05 Engineer builds a Wall. 05000_ Acquired 10 matter. 05000_ R-10 Processor collects Hvy. Machine Gun. 05002_ 4C-4ZK(z) destroyed. 05004_ Slug penetrates Wall. Map ----- +----------------------------------------------------+ | | | | | | | ??????????????????????????????????????????????? | | ????#######???????????????????????????????????? | | ??#? ? ?????????????????????????????????? | | ??# " " " " "? #??????????????????????????????? | | ??# " " " " " #??????????????????????????????? | | ??# " " " " " #??????????????????????????????? | | ??# #??????????????????????????????? | | ??# " " " #????????????#####?????????????? | | ??# "" " " " #????????????# #?????????????? | | ??# " " " #????????????# #?????????????? | | ??# #??????###???# #?????????????? | | ??# | ############## #?????????????? | | ??# "" ! # # ! # #?????????????? | | ??# %%% ###!#= ! # #?????????????? | | ??####+##+########## % ! # ########+?????? | | ?????# % % + % #* ?? | | ?????# #### %# % %/% ?? | | ?????# !!!#?# # # ?? | | ?????# !! #?#####% ##+######## ##??? | | ?????# !! #?????# # ???????? #???? | | ?????# #?????# % # [ "????????????? | | ?????# ##########+#####?? ?????????????? | | ?????####### ## %@ #?????????????????? | | ???????##### ## #?????????????????? | | ???????????# ## #?????????????????? | | ???????????# ## #?????????????????? | | ???????????# ## Y + ????????????????? | | ???????????# + w # ???????????????? | | ???????????# ########;#;#######??????????????? | | ???????????# #??????# ????????????????????? | | ???????????# ?????? H ????????????????????? | | ???????????+ ????? < ???????????????????? | | ???????????# ???? ???????????????????? | | ???????????###+#+????# ???????????????????? | | ??????????????????????# ##??????????????????? | | ??????????????????????? #???????????????????? | | ??????????????????????? ? #???????????????????? | | ??????????????????????? ??????????????????????? | | ??????????????????????????????????????????????? | | ??????????????????????????????????????????????? | | ??????????????????????????????????????????????? | | ??????????????????????????????????????????????? | | ??????????????????????????????????????????????? | | ??????????????????????????????????????????????? | | ??????????????????????????????????????????????? | | ??????????????????????????????????????????????? | | ??????????????????????????????????????????????? | +----------------------------------------------------+ Best States ------------- Heat Dissipation 56 Energy Generation 32 Energy Capacity 500 Matter Stores 300 Matter Capacity 300 Sight Range 16 Robot Scan Range 16 Terrain Scan Range 20 Terrain Scan Density 10 Armor Coverage 450 Evasion (%) 65 Recoil Reduction 2 Offensive Hacking 10 Defensive Hacking 10 Item Schematics ----------------- Xenon Bombardment Thruster | -7/Zion | Archive Adv. Terrain Scanner | -7/Zion | Archive Arc Projector | -7/Zion | Archive Imp. Particle Charger | -7/Zion | Archive Adv. Cooling System | -7/Zion | Archive Lyr. Medium Armor Plating | -7/Zion | Archive Med. Reflective Plating | -7/Zion | Archive Med. Reactive Plating | -7/Zion | Archive Force Field | -7/Zion | Archive Imp. Recalibrator | -7/Zion | Archive Microactuators | -7/Zion | Archive Arm. Leg | -7/Zion | Archive Coil Gun | -7/Zion | Archive Hvy. Laser | -7/Zion | Archive Imp. EM Pulse Cannon | -7/Zion | Archive Robot Schematics ------------------ Y-45 Defender | -7/Zion | Archive G-47 Trooper | -7/Zion | Archive B-48 Gladiator | -7/Zion | Archive Fabricated ------------ Nothing Repaired ---------- Nothing Alien Tech Used ----------------- None Achievements -------------- None Challenges ------------ None Game ------ Seed DrainedPlatingTerminator Manual? 0 Play Time 00:55:28 Cumulative 311.5 hours Start 2025.08.03 @ 19:59:18 End 2025.08.03 @ 21:05:02 Sessions 1 Manual Loads 0 Difficulty Rogue Special Mode None Game No. 131 Rogue 60 Adventurer 68 Explorer 3 Win Type - Total 24 Types 16/1/1/4/1/0/0/0/0/1 Lore% 76 Gallery% 73 Achievement% 71 Wizard Run 0 Options --------- Layout 0 ASCII 0 Keyboard 0 Movement Numpad Keybinds 0 Fullscreen 1 Font 24/Smallcaps Map View 76x50 Zoom Use 0% Tactical HUD 1 Map Filters NONE Filters NONE Steam 1 RUN: 8cf4c9cf-456a-491f-aabb-bfd5d0b6d4c7